fUST/lending_fUST_20240902
["ID","MTS","AMOUNT","RATE_DAILY","PERIOD"]
[336951569,1725261050997,-500.0,0.00027123,2]
[336951570,1725261051007,-500.0,0.00027123,2]
[336951571,1725261051016,-193.27802122,0.00027123,2]
[336951572,1725261051025,-500.0,0.00027123,2]
[336951573,1725261051036,-1380.87,0.00027123,2]
[336951574,1725261051046,-503.34693228,0.00027123,2]
[336951575,1725261051054,-520.65,0.00027123,2]
[336951576,1725261051063,-500.0,0.00027123,2]
[336951577,1725261051073,-823.78,0.00027123,2]
[336951578,1725261051082,-527.21,0.00027123,2]
[336951579,1725261051091,-929.36,0.00027123,2]
[336951580,1725261051101,-203.693301,0.00027123,7]
[336951581,1725261051110,-950.17,0.00027123,2]
[336951582,1725261051120,-203.693301,0.00027123,7]
[336951583,1725261051129,-500.0,0.00027123,2]
[336951584,1725261051138,-1343.0,0.00027123,2]
[336951585,1725261051147,-500.0,0.00027123,2]
[336951586,1725261051156,-999.88,0.00027123,2]
[336951587,1725261051165,-500.0,0.00027123,2]
[336951588,1725261051174,-500.0,0.00027123,2]
[336951589,1725261051184,-603.67,0.00027123,2]
[336951590,1725261051194,-1935.93,0.00027123,2]
[336951591,1725261051203,-704.48,0.00027123,2]
[336951592,1725261051212,-9485.33,0.00027123,2]
[336951593,1725261051221,-960.96,0.00027123,2]
[336951594,1725261051231,-500.0,0.00027123,2]
[336951595,1725261051241,-1205.64,0.00027123,2]
[336951596,1725261051251,-500.0,0.00027123,2]
[336951597,1725261051260,-500.0,0.00027123,2]
[336951598,1725261051269,-549.25,0.00027123,2]
[336951599,1725261051279,-1596.2,0.00027123,2]
[336951600,1725261051290,-500.0,0.00027123,2]
[336951601,1725261051299,-2069.72,0.00027123,2]
[336951602,1725261051308,-729.04,0.00027123,2]
[336951603,1725261051461,-783.37,0.00027123,2]
[336951604,1725261051470,-500.0,0.00027123,2]
[336951605,1725261051479,-1246.39,0.00027123,2]
[336951606,1725261051489,-553.305742,0.00027123,2]
[336951607,1725261051499,-500.0,0.00027123,2]
[336951608,1725261051508,-1094.2,0.00027123,2]
[336951609,1725261051517,-918.1,0.00027123,2]
[336951610,1725261051527,-1026.81,0.00027123,2]
[336951611,1725261051537,-597.63,0.00027123,2]
[336951612,1725261051547,-1151.54,0.00027123,2]
[336951613,1725261051557,-1257.05,0.00027123,2]
[336951614,1725261051566,-500.0,0.00027123,2]
[336951615,1725261051576,-935.08,0.00027123,2]
[336951616,1725261051585,-1899.94,0.00027123,2]
[336951617,1725261051595,-3722.97,0.00027123,2]
[336951618,1725261051604,-1356.52,0.00027123,2]
[336951619,1725261051613,-500.0,0.00027123,2]
[336951620,1725261051623,-673.9,0.00027123,2]
[336951621,1725261051635,-1004.78,0.00027123,2]
[336951622,1725261051645,-1548.67,0.00027123,2]
[336951623,1725261051655,-589.21220952,0.00027123,2]
[336951624,1725261051664,-500.0,0.00027123,2]
[336951625,1725261051675,-1196.41,0.00027123,2]
[336951626,1725261051684,-820.74,0.00027123,2]
[336951627,1725261051693,-986.49,0.00027123,2]
[336951628,1725261051703,-989.14,0.00027123,2]
[336951629,1725261051714,-772.1,0.00027123,2]
[336951630,1725261051724,-1070.89,0.00027123,2]
[336951631,1725261051734,-809.06,0.00027123,2]
[336951632,1725261051743,-500.0,0.00027123,2]
[336951633,1725261051754,-1274.85,0.00027123,2]
[336951634,1725261051763,-1621.44,0.00027123,2]
[336951635,1725261051772,-537.71,0.00027123,2]
[336951636,1725261051781,-500.0,0.00027123,2]
[336951637,1725261051791,-500.0,0.00027123,2]
[336951638,1725261051801,-500.0,0.00027123,2]
[336951639,1725261051810,-718.55,0.00027123,2]
[336951640,1725261051820,-5942.41,0.00027123,2]
[336951641,1725261051830,-1295.65,0.00027123,2]
[336951642,1725261051839,-570.39,0.00027123,2]
[336951643,1725261051848,-1140.34,0.00027123,2]
[336951644,1725261051857,-500.0,0.00027123,2]
[336951645,1725261051866,-1150.84,0.00027123,2]
[336951646,1725261051875,-1100.3,0.00027123,2]
[336951647,1725261051884,-1392.74,0.00027123,2]
[336951648,1725261051894,-596.01,0.00027123,2]
[336951649,1725261051903,-652.95,0.00027123,2]
[336951650,1725261051913,-500.0,0.00027123,2]
[336951651,1725261051922,-500.0,0.00027123,2]
[336951652,1725261051931,-970.03,0.00027123,2]
[336951653,1725261051940,-1032.57,0.00027123,2]
[336951654,1725261051950,-2241.47,0.00027123,2]
[336951655,1725261051960,-6424.76,0.00027123,2]
[336951656,1725261051969,-922.8,0.00027123,2]
[336951657,1725261051979,-1111.61,0.00027123,2]
[336951658,1725261051989,-500.0,0.00027123,2]
[336951659,1725261051998,-2689.12,0.00027123,2]
[336951660,1725261052007,-500.0,0.00027123,2]
[336951661,1725261052016,-1668.35,0.00027123,2]
[336951662,1725261052025,-1495.1,0.00027123,2]
[336951663,1725261052034,-590.61,0.00027123,2]
[336951664,1725261052044,-160.84945291,0.00027123,2]
[336951665,1725261052053,-160.0,0.00027185,2]
[336951666,1725261052062,-500.0,0.0002726,2]
[336951667,1725261052071,-266.89527363,0.0002726,2]
[336951668,1725261052080,-71055.45210004,0.00027396,11]
[336951669,1725261052089,-500.0,0.00027397,2]
[336951670,1725261052099,-500.0,0.00027397,2]
[336951671,1725261052108,-500.0,0.00027397,2]
[336951672,1725261052117,-282.0,0.00027397,7]
[336951673,1725261052127,-500.0,0.00027397,2]
[336951674,1725261052136,-560.82,0.00027397,2]
[336951675,1725261052146,-500.0,0.00027397,2]
[336951676,1725261052154,-500.0,0.00027397,2]
[336951677,1725261052164,-805.5,0.00027397,2]
[336951678,1725261052173,-602.31,0.00027397,2]
[336951679,1725261052182,-500.0,0.00027397,2]
[336951680,1725261052191,-500.0,0.00027397,2]
[336951681,1725261052200,-500.0,0.00027397,2]
[336951682,1725261052210,-220.33304448,0.00027397,2]
[336951683,1725261052224,-2550.71,0.00027397,2]
[336951684,1725261052233,-500.0,0.00027397,2]
[336951685,1725261052241,-500.0,0.00027397,2]
[336951686,1725261052250,-514.94,0.00027397,2]
[336951687,1725261052258,-826.3,0.00027397,2]
[336951688,1725261052269,-525.66,0.00027397,2]
[336951689,1725261052278,-500.0,0.00027397,2]
[336951690,1725261052287,-500.0,0.00027397,2]
[336951691,1725261052297,-500.0,0.00027397,2]
[336951692,1725261052306,-597.97,0.00027397,2]
[336951693,1725261052315,-500.0,0.00027397,2]
[336951694,1725261052327,-151.0,0.00027397,7]
[336951695,1725261052336,-151.0,0.00027397,7]
[336951696,1725261052345,-864.86,0.00027397,2]
[336951697,1725261052355,-700.25,0.00027397,2]
[336951698,1725261052364,-668.81,0.00027397,2]
[336951699,1725261052373,-602.39,0.00027397,2]
[336951700,1725261052383,-500.0,0.00027397,2]
[336951701,1725261052392,-500.0,0.00027397,2]
[336951702,1725261052402,-500.0,0.00027397,2]
[336951703,1725261052411,-500.0,0.00027397,2]
[336951704,1725261052421,-505.92795691,0.00027397,2]
[336951705,1725261052430,-689.41,0.00027397,2]
[336951706,1725261052439,-500.0,0.00027397,2]
[336951707,1725261052448,-500.0,0.00027397,2]
[336951708,1725261052458,-500.0,0.00027397,2]
[336951709,1725261052471,-1380.87,0.00027397,2]
[336951710,1725261052480,-520.65,0.00027397,2]
[336951711,1725261052489,-500.0,0.00027397,2]
[336951712,1725261052500,-823.78,0.00027397,2]
[336951713,1725261052510,-527.21,0.00027397,2]
[336951714,1725261052519,-929.36,0.00027397,2]
[336951715,1725261052529,-203.693301,0.00027397,7]
[336951716,1725261052538,-203.693301,0.00027397,7]
[336951717,1725261052547,-950.17,0.00027397,2]
[336951718,1725261052556,-203.693301,0.00027397,7]
[336951719,1725261052565,-203.693301,0.00027397,7]
[336951720,1725261052575,-500.0,0.00027397,2]
[336951721,1725261052584,-1343.0,0.00027397,2]
[336951722,1725261052593,-500.0,0.00027397,2]
[336951723,1725261052603,-999.88,0.00027397,2]
[336951724,1725261052612,-500.0,0.00027397,2]
[336951725,1725261052622,-500.0,0.00027397,2]
[336951726,1725261052633,-603.67,0.00027397,2]
[336951727,1725261052642,-1935.93,0.00027397,2]
[336951728,1725261052651,-704.48,0.00027397,2]
[336951729,1725261052661,-9485.33,0.00027397,2]
[336951730,1725261052670,-960.96,0.00027397,2]
[336951731,1725261052681,-500.0,0.00027397,2]
[336951732,1725261052690,-1205.64,0.00027397,2]
[336951733,1725261052699,-500.0,0.00027397,2]
[336951734,1725261052709,-500.0,0.00027397,2]
[336951735,1725261052720,-549.25,0.00027397,2]
[336951736,1725261052729,-1596.2,0.00027397,2]
[336951737,1725261052739,-500.0,0.00027397,2]
[336951738,1725261052748,-2069.72,0.00027397,2]
[336951739,1725261052757,-729.04,0.00027397,2]
[336951740,1725261052767,-783.37,0.00027397,2]
[336951741,1725261052776,-500.0,0.00027397,2]
[336951742,1725261052785,-1246.39,0.00027397,2]
[336951743,1725261052794,-500.0,0.00027397,2]
[336951744,1725261052803,-1094.2,0.00027397,2]
[336951745,1725261052812,-918.1,0.00027397,2]
[336951746,1725261052821,-1026.81,0.00027397,2]
[336951747,1725261052830,-597.63,0.00027397,2]
[336951748,1725261052839,-1151.54,0.00027397,2]
[336951749,1725261052848,-1257.05,0.00027397,2]
[336951750,1725261052857,-425.94554215,0.00027397,2]
[336951751,1725261052865,-935.08,0.00027397,2]
[336951752,1725261052875,-1899.94,0.00027397,2]
[336951753,1725261052884,-3722.97,0.00027397,2]
[336951754,1725261052893,-1356.52,0.00027397,2]
[336951755,1725261052903,-500.0,0.00027397,2]
[336951756,1725261052912,-673.9,0.00027397,2]
[336951757,1725261052922,-1004.78,0.00027397,2]
[336951758,1725261052931,-1548.67,0.00027397,2]
[336951759,1725261052941,-500.0,0.00027397,2]
[336951760,1725261052950,-1196.41,0.00027397,2]
[336951761,1725261052960,-820.74,0.00027397,2]
[336951762,1725261052970,-986.49,0.00027397,2]
[336951763,1725261052979,-989.14,0.00027397,2]
[336951764,1725261052988,-772.1,0.00027397,2]
[336951765,1725261052997,-1070.89,0.00027397,2]
[336951766,1725261053007,-809.06,0.00027397,2]
[336951767,1725261053016,-500.0,0.00027397,2]
[336951768,1725261053025,-1274.85,0.00027397,2]
[336951769,1725261053034,-1621.44,0.00027397,2]
[336951770,1725261053043,-537.71,0.00027397,2]
[336951771,1725261053052,-500.0,0.00027397,2]
[336951772,1725261053061,-500.0,0.00027397,2]
[336951773,1725261053070,-299.00555019,0.00027397,2]
[336951774,1725261053079,-718.55,0.00027397,2]
[336951775,1725261053089,-4690.8774044,0.00027397,2]
[336951776,1725261081308,10000.0,0.00025,120]
[336951777,1725261101363,480.0,0.00025,120]
[336951792,1725261510680,165.246664,0.00014247,2]
[336951797,1725261684651,409.7901659,0.00025,120]
[336951798,1725261692311,417.0726476,0.00025,120]
[336951799,1725261699458,409.7901659,0.00025,120]
[336951800,1725261746917,409.7901659,0.0002465,5]
[336951801,1725261755412,409.7901659,0.0002465,5]
[336951802,1725261766258,409.7901659,0.0002465,5]
[336951803,1725261778807,409.7901659,0.0002465,5]
[336951804,1725261809874,409.7901659,0.0002465,5]
[336951805,1725261825023,290.6840994,0.0002465,7]
[336951806,1725261832960,409.7901659,0.0002465,7]
[336951807,1725261838634,409.7901659,0.0002465,7]
[336951808,1725261844997,819.5803318,0.0002465,7]
[336951809,1725261850481,409.7901659,0.0002465,7]
[336951810,1725261855977,409.7901659,0.0002465,7]
[336951812,1725261864736,409.7901659,0.0002465,7]
[336951813,1725261887019,409.7901659,0.00025,120]
[336951814,1725261894263,409.7901659,0.00025,120]
[336951815,1725261902715,409.7901659,0.0002465,7]
[336951816,1725261910003,409.7901659,0.0002465,7]
[336951817,1725261943139,-1046.6777911,0.00023629,2]
[336951818,1725261943162,-303.666089,0.00023836,2]
[336951819,1725261943185,-468.14279546,0.00024557,2]
[336951820,1725261959102,-131.68079694,0.00024557,2]
[336951821,1725261959128,-915.34526968,0.00024647,3]
[336951822,1725262052119,-159.5686093,0.00023874,2]
[336951823,1725262052144,-601.60744962,0.00024647,3]
[336951824,1725262053189,-366.16865716,0.00024647,3]
[336951825,1725262053212,-300.0,0.00024656,2]
[336951826,1725262053237,-500.96041637,0.00024657,2]
[336951827,1725262053260,-500.0,0.00024657,2]
[336951828,1725262053283,-500.0,0.00024657,2]
[336951829,1725262053306,-294.64236886,0.00024657,2]
[336951932,1725262159136,-187.95886296,0.00023836,2]
[336951933,1725262171281,-115.69105204,0.00023836,2]
[336951948,1725262232039,-1083.13050916,0.00024647,3]
[336951949,1725262232071,-1459.08334904,0.00024647,3]
[336951950,1725262232082,-300.0,0.00024656,2]
[336951951,1725262232094,-500.0,0.00024657,2]
[336951952,1725262232106,-500.0,0.00024657,2]
[336951953,1725262232119,-500.0,0.00024657,2]
[336951954,1725262232131,-500.0,0.00024657,2]
[336951955,1725262232143,-500.0,0.00024657,2]
[336951956,1725262232155,-500.0,0.00024657,2]
[336951957,1725262232166,-500.0,0.00024657,2]
[336951958,1725262232177,-500.0,0.00024657,2]
[336951959,1725262232188,-501.02018919,0.00024657,2]
[336951960,1725262232199,-500.0,0.00024657,2]
[336951961,1725262232209,-500.0,0.00024657,2]
[336951962,1725262232220,-500.0,0.00024657,2]
[336951963,1725262232231,-500.0,0.00024657,2]
[336951964,1725262232241,-500.0,0.00024657,2]
[336951965,1725262232252,-500.0,0.00024657,2]
[336951966,1725262232262,-500.0,0.00024657,2]
[336951967,1725262232273,-500.0,0.00024657,2]
[336951968,1725262232284,-500.0,0.00024657,2]
[336951969,1725262232294,-500.0,0.00024657,2]
[336951970,1725262232304,-500.0,0.00024657,2]
[336951971,1725262232315,-500.0,0.00024657,2]
[336951972,1725262232326,-500.0,0.00024657,2]
[336951973,1725262232336,-500.5331743,0.00024657,2]
[336951974,1725262232347,-501.82677298,0.00024657,2]
[336951975,1725262232358,-500.0,0.00024657,2]
[336951976,1725262232368,-154.60575532,0.00024657,2]
[336951977,1725262232378,-500.0,0.00024657,2]
[336951978,1725262232389,-500.0,0.00024657,2]
[336951979,1725262232399,-500.0,0.00024657,2]
[336951980,1725262232410,-552.86277388,0.00024657,2]
[336951981,1725262232420,-500.69386133,0.00024657,2]
[336951982,1725262232430,-500.0,0.00024657,2]
[336951983,1725262232440,-500.40366066,0.00024657,2]
[336951984,1725262232450,-500.0,0.00024657,2]
[336951985,1725262232462,-209.44276799,0.00024657,2]
[336951986,1725262232474,-500.0,0.00024657,2]
[336951987,1725262232485,-500.0,0.00024657,2]
[336951988,1725262232495,-500.0,0.00024657,2]
[336951989,1725262232506,-500.0,0.00024657,2]
[336951990,1725262232516,-500.0,0.00024657,2]
[336951991,1725262232527,-500.0,0.00024657,2]
[336951992,1725262232537,-500.0,0.00024657,2]
[336951993,1725262232547,-500.73013519,0.00024657,2]
[336951994,1725262232558,-500.0,0.00024657,2]
[336951995,1725262232569,-500.0,0.00024657,2]
[336951996,1725262232581,-500.0,0.00024657,2]
[336951997,1725262232592,-500.0,0.00024657,2]
[336951998,1725262232605,-213.17927534,0.00024657,2]
[336951999,1725262232617,-500.0,0.00024657,2]
[336952000,1725262232630,-500.0,0.00024657,2]
[336952001,1725262232644,-515.75823443,0.00024657,2]
[336952002,1725262232656,-500.0,0.00024657,2]
[336952003,1725262232669,-500.0,0.00024657,2]
[336952004,1725262232681,-500.0,0.00024657,2]
[336952005,1725262232692,-500.0,0.00024657,2]
[336952006,1725262232703,-500.0,0.00024657,2]
[336952007,1725262232714,-500.0,0.00024657,2]
[336952008,1725262232725,-500.0,0.00024657,2]
[336952009,1725262232736,-500.0,0.00024657,2]
[336952010,1725262232748,-500.0,0.00024657,2]
[336952011,1725262232759,-532.78844854,0.00024657,2]
[336952012,1725262232769,-497.34361056,0.00024657,2]
[336952013,1725262232780,-500.0,0.00024657,2]
[336952014,1725262232790,-508.84601125,0.00024657,2]
[336952015,1725262232801,-500.0,0.00024657,2]
[336952016,1725262232811,-500.43665897,0.00024657,2]
[336952017,1725262232821,-500.0,0.00024657,2]
[336952018,1725262232831,-500.0,0.00024657,2]
[336952019,1725262232842,-500.0,0.00024657,2]
[336952020,1725262232852,-500.0,0.00024657,2]
[336952021,1725262232863,-500.43879414,0.00024657,2]
[336952022,1725262232874,-500.81808928,0.00024657,2]
[336952023,1725262232885,-500.0,0.00024657,2]
[336952024,1725262232896,-500.0,0.00024657,2]
[336952025,1725262232906,-564.86674617,0.00024657,2]
[336952026,1725262232918,-500.0,0.00024657,2]
[336952027,1725262232928,-676.29,0.00024657,2]
[336952028,1725262232938,-500.0,0.00024657,2]
[336952029,1725262232949,-500.0,0.00024657,2]
[336952030,1725262232959,-500.0,0.00024657,2]
[336952031,1725262232970,-500.41187873,0.00024657,2]
[336952032,1725262232980,-505.89865294,0.00024657,2]
[336952033,1725262232991,-500.73495151,0.00024657,2]
[336952034,1725262233001,-500.0,0.00024657,2]
[336952035,1725262233015,-500.0,0.00024657,2]
[336952036,1725262233030,-500.46054907,0.00024657,2]
[336952037,1725262233041,-500.0,0.00024657,2]
[336952038,1725262233051,-500.0,0.00024657,2]
[336952039,1725262233064,-500.5917606,0.00024657,2]
[336952040,1725262233075,-500.0,0.00024657,2]
[336952041,1725262233087,-500.0,0.00024657,2]
[336952042,1725262233098,-391.54057447,0.00024657,2]
[336952043,1725262233110,-500.0,0.00024657,2]
[336952044,1725262233120,-500.0,0.00024657,2]
[336952045,1725262233132,-504.71189176,0.00024657,2]
[336952046,1725262233143,-500.0,0.00024657,2]
[336952047,1725262233154,-500.0,0.00024657,2]
[336952048,1725262233165,-495.81738523,0.00024657,2]
[336952049,1725262233175,-500.0,0.00024657,2]
[336952050,1725262233185,-500.0,0.00024657,2]
[336952051,1725262233194,-500.0,0.00024657,2]
[336952052,1725262233204,-500.0,0.00024657,2]
[336952053,1725262233213,-500.0,0.00024657,2]
[336952054,1725262233223,-500.0,0.00024657,2]
[336952055,1725262233234,-500.0,0.00024657,2]
[336952056,1725262233244,-500.0,0.00024657,2]
[336952057,1725262233253,-500.0,0.00024657,2]
[336952058,1725262233496,-199.66020972,0.00024657,2]
[336952059,1725262233514,-505.34313823,0.00024657,2]
[336952060,1725262233527,-500.0,0.00024657,2]
[336952061,1725262233536,-500.0,0.00024657,2]
[336952062,1725262233547,-501.33735503,0.00024657,2]
[336952063,1725262233556,-500.0,0.00024657,2]
[336952064,1725262233566,-525.46739308,0.00024657,2]
[336952065,1725262233576,-500.0,0.00024657,2]
[336952066,1725262233585,-500.0,0.00024657,2]
[336952067,1725262233595,-500.0,0.00024657,2]
[336952068,1725262233606,-500.0,0.00024657,2]
[336952069,1725262233616,-500.0,0.00024657,2]
[336952070,1725262233625,-500.0,0.00024657,2]
[336952071,1725262233636,-500.0,0.00024657,2]
[336952072,1725262233646,-500.0,0.00024657,2]
[336952073,1725262233655,-500.0,0.00024657,2]
[336952074,1725262233665,-500.0,0.00024657,2]
[336952075,1725262233674,-500.0,0.00024657,2]
[336952076,1725262233684,-500.0,0.00024657,2]
[336952077,1725262233693,-500.0,0.00024657,2]
[336952078,1725262233703,-500.0,0.00024657,2]
[336952079,1725262233714,-500.0,0.00024657,2]
[336952080,1725262233723,-500.0,0.00024657,2]
[336952081,1725262233733,-500.0,0.00024657,2]
[336952082,1725262233743,-500.0,0.00024657,2]
[336952083,1725262233752,-500.0,0.00024657,2]
[336952084,1725262233762,-500.0,0.00024657,2]
[336952085,1725262233772,-500.0,0.00024657,2]
[336952086,1725262233782,-500.0,0.00024657,2]
[336952087,1725262233791,-500.0,0.00024657,2]
[336952088,1725262233800,-500.0,0.00024657,2]
[336952089,1725262233811,-500.0,0.00024657,2]
[336952090,1725262233821,-503.86842878,0.00024657,2]
[336952091,1725262233830,-500.0,0.00024657,2]
[336952092,1725262233840,-500.0,0.00024657,2]
[336952093,1725262233849,-205.2154164,0.00024657,2]
[336952094,1725262233858,-500.0,0.00024657,2]
[336952095,1725262233868,-500.0,0.00024657,2]
[336952096,1725262233878,-500.0,0.00024657,2]
[336952097,1725262233892,-500.0,0.00024657,2]
[336952098,1725262233901,-500.0,0.00024657,2]
[336952099,1725262233911,-500.0,0.00024657,2]
[336952100,1725262233921,-500.0,0.00024657,2]
[336952101,1725262233929,-500.0,0.00024657,2]
[336952102,1725262233938,-500.0,0.00024657,2]
[336952103,1725262233948,-500.0,0.00024657,2]
[336952104,1725262233958,-500.0,0.00024657,2]
[336952105,1725262233967,-500.0,0.00024657,2]
[336952106,1725262233977,-500.0,0.00024657,2]
[336952107,1725262233987,-366.98007961,0.00024657,2]
[336952108,1725262233996,-500.0,0.00024657,2]
[336952109,1725262234007,-500.0,0.00024657,2]
[336952110,1725262234017,-500.0,0.00024657,2]
[336952111,1725262234031,-500.0,0.00024657,2]
[336952112,1725262234040,-500.0,0.00024657,2]
[336952113,1725262234051,-500.0,0.00024657,2]
[336952114,1725262234061,-500.0,0.00024657,2]
[336952115,1725262234071,-500.0,0.00024657,2]
[336952116,1725262234081,-500.0,0.00024657,2]
[336952117,1725262234091,-1849.26,0.00024657,2]
[336952118,1725262234103,-500.0,0.00024657,2]
[336952119,1725262234113,-500.0,0.00024657,2]
[336952120,1725262234122,-500.0,0.00024657,2]
[336952121,1725262234133,-500.0,0.00024657,2]
[336952122,1725262234143,-500.0,0.00024657,2]
[336952123,1725262234153,-500.0,0.00024657,2]
[336952124,1725262234162,-500.0,0.00024657,2]
[336952125,1725262234173,-500.0,0.00024657,2]
[336952126,1725262234183,-599.07,0.00024657,2]
[336952127,1725262234193,-500.0,0.00024657,2]
[336952128,1725262234204,-500.0,0.00024657,2]
[336952129,1725262234215,-500.0,0.00024657,2]
[336952130,1725262234224,-500.0,0.00024657,2]
[336952131,1725262234234,-559.34218101,0.00024657,2]
[336952132,1725262234244,-500.0,0.00024657,2]
[336952133,1725262234254,-500.0,0.00024657,2]
[336952134,1725262234263,-500.0,0.00024657,2]
[336952135,1725262234273,-502.52122468,0.00024657,2]
[336952136,1725262234282,-500.0,0.00024657,2]
[336952137,1725262234292,-500.0,0.00024657,2]
[336952138,1725262234301,-500.0,0.00024657,2]
[336952139,1725262234310,-500.0,0.00024657,2]
[336952140,1725262234320,-217.1757239,0.00024657,2]
[336952141,1725262234330,-500.0,0.00024657,2]
[336952142,1725262234340,-501.90515221,0.00024657,2]
[336952143,1725262234351,-500.0,0.00024657,2]
[336952144,1725262234360,-500.0,0.00024657,2]
[336952145,1725262234370,-501.71763306,0.00024657,2]
[336952146,1725262234380,-500.0,0.00024657,2]
[336952147,1725262234392,-500.0,0.00024657,2]
[336952148,1725262234401,-500.0,0.00024657,2]
[336952149,1725262234410,-500.0,0.00024657,2]
[336952150,1725262234420,-500.0,0.00024657,2]
[336952151,1725262234430,-500.0,0.00024657,2]
[336952152,1725262234439,-500.0,0.00024657,2]
[336952153,1725262234451,-500.0,0.00024657,2]
[336952154,1725262234461,-500.0,0.00024657,2]
[336952155,1725262234472,-500.0,0.00024657,2]
[336952156,1725262234482,-500.0,0.00024657,2]
[336952157,1725262234492,-500.0,0.00024657,2]
[336952158,1725262234501,-500.0,0.00024657,2]
[336952159,1725262234510,-511.89508418,0.00024657,2]
[336952160,1725262234520,-503.48375252,0.00024657,2]
[336952161,1725262234531,-500.0,0.00024657,2]
[336952162,1725262234540,-500.0,0.00024657,2]
[336952163,1725262234550,-500.0,0.00024657,2]
[336952164,1725262234559,-500.0,0.00024657,2]
[336952165,1725262234570,-500.0,0.00024657,2]
[336952166,1725262234581,-500.0,0.00024657,2]
[336952167,1725262234590,-500.0,0.00024657,2]
[336952168,1725262234600,-270.84558866,0.00024657,2]
[336952169,1725262234609,-500.0,0.00024657,2]
[336952170,1725262234618,-288.97975478,0.00024657,2]
[336952171,1725262234628,-164.92745214,0.00024657,2]
[336952172,1725262234638,-500.0,0.00024657,2]
[336952173,1725262234647,-514.87,0.00024657,2]
[336952174,1725262234657,-500.0,0.00024657,2]
[336952175,1725262234667,-503.34693228,0.00024657,2]
[336952176,1725262234678,-500.0,0.00024657,2]
[336952177,1725262234687,-500.0,0.00024657,2]
[336952178,1725262234696,-500.0,0.00024657,2]
[336952179,1725262234705,-593.85,0.00024657,2]
[336952180,1725262234715,-863.05,0.00024657,2]
[336952181,1725262234724,-500.0,0.00024657,2]
[336952182,1725262234734,-500.0,0.00024657,2]
[336952183,1725262234745,-500.0,0.00024657,2]
[336952184,1725262234755,-500.0,0.00024657,2]
[336952185,1725262234764,-500.0,0.00024657,2]
[336952186,1725262234774,-383.56486565,0.00024657,2]
[336952187,1725262234784,-500.0,0.00024657,2]
[336952188,1725262234793,-500.0,0.00024657,2]
[336952189,1725262234803,-500.0,0.00024657,2]
[336952190,1725262234812,-500.0,0.00024657,2]
[336952191,1725262234821,-500.0,0.00024657,2]
[336952192,1725262234830,-500.0,0.00024657,2]
[336952193,1725262234840,-500.0,0.00024657,2]
[336952194,1725262234849,-500.0,0.00024657,2]
[336952195,1725262234859,-500.0,0.00024657,2]
[336952196,1725262234868,-500.0,0.00024657,2]
[336952197,1725262234878,-500.0,0.00024657,2]
[336952198,1725262234889,-500.0,0.00024657,2]
[336952199,1725262234899,-640.64,0.00024657,2]
[336952200,1725262234908,-500.0,0.00024657,2]
[336952201,1725262234918,-500.0,0.00024657,2]
[336952202,1725262234928,-500.0,0.00024657,2]
[336952203,1725262234937,-500.0,0.00024657,2]